bitfinex/quotes_SOLUSD_20250201
["timestamp","ask_amount","ask_price","bid_price","bid_amount"]
[1738435634832,20.0,225.8,225.77,0.063]
[1738435635029,0.83060728,225.79,225.77,0.063]
[1738435636053,0.83059844,225.78,225.77,0.063]
[1738435636365,0.83058377,225.8,225.77,0.063]
[1738435640157,0.66386555,273.33,225.77,0.063]
[1738435640158,0.83056184,225.83,225.77,0.063]
[1738435641654,20.0,225.81,225.77,0.063]
[1738435641848,0.83060649,225.8,225.77,0.063]
[1738435644636,1.0,225.78,225.77,0.063]
[1738435644847,13.41184853,225.77,225.76,0.063]
[1738435645250,20.0,225.77,225.76,0.063]
[1738435645449,13.41184853,225.75,225.74,0.03]
[1738435645652,14.24273145,225.75,225.74,0.03]
[1738435645856,20.0,225.72,225.68,0.03]
[1738435646053,0.8309232,225.71,225.68,0.03]
[1738435646965,13.41184853,225.7,225.68,0.03]
[1738435647145,0.83106123,225.69,225.68,0.03]
[1738435647354,14.24290976,225.69,225.68,0.03]
[1738435648243,14.41184853,225.62,225.61,0.03]
[1738435648556,15.24321168,225.62,225.61,0.03]
[1738435648756,18.20321168,225.62,225.61,0.03]
[1738435650065,17.20321168,225.62,225.61,0.03]
[1738435650559,23.79136315,225.62,225.61,0.03]
[1738435651062,3.79136315,225.62,225.61,0.03]
[1738435651245,0.83136315,225.62,225.61,0.03]
[1738435651766,0.8312592,225.63,225.61,0.03]
[1738435652343,2.96,225.64,225.61,0.03]
[1738435652541,2.96,225.64,225.52,15.5195]
[1738435652542,13.41184853,225.6,225.47,0.6648457]
[1738435652765,13.41184853,225.6,225.47,5.0999457]
[1738435652766,0.83146955,225.59,225.47,5.0999457]
[1738435653172,20.0,225.57,225.47,5.0999457]
[1738435653366,0.83147013,225.56,225.47,5.0999457]
[1738435653664,20.83147013,225.56,225.45,5.10057611]
[1738435654370,20.83147013,225.56,225.45,0.66517611]
[1738435654665,20.83147013,225.56,225.44,0.66520883]
[1738435656671,20.83147013,225.56,225.44,5.10090883]
[1738435658170,8.9357,225.59,225.46,12.92578155]
[1738435658171,0.83149683,225.58,225.46,12.92578155]
[1738435658365,3.0,225.62,225.44,5.10090883]
[1738435658366,0.83131283,225.61,225.5,12.92578155]
[1738435658557,0.83131283,225.61,225.44,4.4357]
[1738435658558,0.83131283,225.61,225.51,13.59075204]
[1738435658759,0.83131283,225.61,225.51,0.66497049]
[1738435659271,20.83131283,225.61,225.51,5.09927049]
[1738435659565,0.83131283,225.61,225.51,5.09927049]
[1738435659754,0.83130124,225.6,225.51,0.66497049]
[1738435659954,0.83131088,225.63,225.5,4.4345]
[1738435660161,20.0,225.61,225.51,0.6650489]
[1738435660354,0.83130812,225.6,225.51,0.6650489]
[1738435660766,20.0,225.57,225.46,4.4353]
[1738435661071,0.83147432,225.56,225.47,0.66517946]
[1738435661376,0.83147432,225.56,225.44,0.66517946]
[1738435661557,0.83147432,225.56,225.43,0.66529027]
[1738435661964,20.0,225.51,225.43,0.66529027]
[1738435662168,0.83161638,225.5,225.43,0.66529027]
[1738435662362,0.83161638,225.5,225.47,0.063]
[1738435667284,20.83161638,225.5,225.47,0.063]
[1738435667574,20.0,225.49,225.47,0.063]
[1738435667769,0.83179841,225.48,225.47,0.063]
[1738435671277,14.24364694,225.48,225.47,0.063]
[1738435671681,20.0,225.44,225.36,0.66545059]
[1738435671870,20.0,225.39,225.29,0.66563781]
[1738435672178,20.0,225.39,225.3,4.4385]
[1738435672179,0.83205251,225.38,225.3,4.4385]
[1738435672383,0.83205251,225.38,225.31,0.66563432]
[1738435673871,0.83205251,225.38,225.26,0.66566724]
[1738435674067,0.83205251,225.38,225.27,4.4391]
[1738435674268,0.83205251,225.38,225.28,0.66567447]
[1738435674677,0.83205251,225.38,225.31,0.063]
[1738435678283,22.40785251,225.38,225.31,0.063]
[1738435678992,28.82675251,225.38,225.31,0.063]
[1738435679359,20.0,225.34,225.31,0.063]
[1738435679563,0.83232377,225.33,225.31,0.063]
[1738435680571,0.83232758,225.32,225.31,0.063]
[1738435681585,0.83237756,225.34,225.31,0.063]
[1738435682176,0.83219591,225.37,225.31,0.063]
[1738435683164,2.4079239,225.38,225.31,5.16699912]
[1738435683485,0.83204517,225.4,225.31,5.16699912]
[1738435684306,0.83199398,225.39,225.31,5.16699912]
[1738435684680,0.83199398,225.39,225.31,4.5013]
[1738435684884,0.83199398,225.39,225.31,0.063]
[1738435686165,0.83199398,225.39,225.31,5.16696587]
[1738435686793,0.83199398,225.39,225.31,0.063]
[1738435686982,0.83199398,225.39,225.31,4.5013]
[1738435687379,0.83207554,225.42,225.32,0.66566043]
[1738435687697,0.83191515,225.44,225.36,12.92578155]
[1738435687900,0.83191515,225.44,225.37,0.66548725]
[1738435688399,0.83186128,225.46,225.37,13.5912688]
[1738435688779,0.83186128,225.46,225.34,4.4377]
[1738435688780,20.83186128,225.46,225.34,4.4377]
[1738435688968,20.83186128,225.46,225.35,0.66553101]
[1738435689368,20.83186128,225.46,225.36,12.92578155]
[1738435689581,20.83186128,225.46,225.37,0.66540843]
[1738435690173,20.83186128,225.46,225.36,0.66542932]
[1738435690378,20.83186128,225.46,225.35,0.66550347]
[1738435691504,20.83186128,225.46,225.35,4.4375]
[1738435691685,20.83186128,225.46,225.34,5.10312129]
[1738435695105,20.83186128,225.46,225.33,0.66551447]
[1738435695397,20.0,225.42,225.33,0.66551447]
[1738435695595,0.83199135,225.41,225.33,0.66551447]
[1738435696083,0.83199135,225.41,225.32,0.66560016]
[1738435696470,0.83199135,225.41,225.32,5.10370016]
[1738435697302,0.83190624,225.46,225.34,12.92578155]
[1738435700180,0.86176247,225.47,225.36,5.10277472]
[1738435700793,0.03,225.47,225.38,4.4369]
[1738435700998,20.0,225.46,225.39,14.07717609]
[1738435701398,0.03,225.47,225.39,27.00295764]
[1738435701596,0.03,225.47,225.4,12.92578155]
[1738435701784,0.03,225.47,225.41,0.6653071]
[1738435702396,0.03,225.47,225.42,4.4361]
[1738435702579,0.03,225.47,225.43,0.66528404]
[1738435703203,0.03,225.47,225.4,5.1016056]
[1738435703503,0.86167732,225.47,225.36,4.4371]
[1738435703811,0.86167732,225.47,225.37,0.66546247]
[1738435706791,20.0,225.43,225.32,0.66551644]
[1738435706990,0.83198736,225.42,225.33,0.66558989]
[1738435707199,0.83198736,225.42,225.34,0.66558222]
[1738435707497,0.83198736,225.42,225.32,13.41184853]
[1738435707698,20.0,225.43,225.33,0.66549185]
[1738435707904,0.83185689,225.42,225.34,0.66548551]
[1738435708092,0.83185689,225.42,225.32,26.33763008]
[1738435708298,0.83185689,225.42,225.33,0.66550088]
[1738435708498,0.83185689,225.42,225.34,0.66551038]
[1738435708697,0.83185689,225.42,225.33,4.4379]
[1738435708901,0.83185689,225.42,225.31,0.063]
[1738435708902,1.646,225.41,225.31,0.063]
[1738435709092,0.83215144,225.4,225.31,0.063]
[1738435709291,20.0,225.36,225.31,0.063]
[1738435709483,0.83216032,225.35,225.31,0.063]
[1738435709686,0.83216032,225.35,225.34,0.063]
[1738435710790,20.0,225.36,225.34,0.063]
[1738435712713,6.1911,225.39,225.34,0.063]
[1738435713100,2.47798674,225.41,225.34,0.063]
[1738435713788,0.83198275,225.4,225.34,0.063]
[1738435714202,3.06,225.39,225.34,0.063]
[1738435714400,21.83205577,225.38,225.34,0.063]
[1738435714597,20.0,225.36,225.34,0.063]
[1738435714807,0.83232944,225.35,225.34,0.063]
[1738435715634,0.83216172,225.38,225.34,0.063]
[1738435715998,20.83216172,225.38,225.34,0.063]
[1738435716191,20.0,225.37,225.34,0.063]
[1738435716390,0.83216775,225.36,225.34,0.063]
[1738435718316,6.1911,225.35,225.34,0.063]
[1738435718533,20.0,225.32,225.31,0.063]
[1738435718695,20.83241626,225.32,225.31,0.063]
[1738435719801,20.0,225.32,225.31,0.063]
[1738435720632,2.47815836,225.34,225.31,0.063]
[1738435721004,1.646,225.34,225.31,0.063]
[1738435721199,2.47815812,225.34,225.31,0.063]
[1738435721527,20.0,225.32,225.31,0.063]
[1738435722624,3.91227513,225.38,225.31,0.063]
[1738435723331,20.0,225.36,225.31,0.063]
[1738435723991,20.0,225.37,225.31,0.063]
[1738435724597,0.83208394,225.36,225.31,0.063]
[1738435736129,0.76350157,225.36,225.31,0.063]
[1738435740237,20.0,225.32,225.31,0.063]
[1738435740737,20.76380587,225.32,225.31,0.063]
[1738435743045,0.76380587,225.32,225.31,0.063]
[1738435743219,0.76383681,225.32,225.31,0.063]
[1738435744261,0.76383323,225.32,225.31,0.063]
[1738435745161,0.76384058,225.34,225.31,0.063]
[1738435745364,0.76384058,225.32,225.31,0.063]
[1738435746266,0.76384022,225.32,225.31,0.063]
[1738435747271,0.76383963,225.32,225.31,0.063]
[1738435748572,0.76383792,225.32,225.31,0.063]
[1738435749357,0.76383255,225.34,225.31,0.063]
[1738435749552,3.04,225.33,225.31,0.063]
[1738435749766,0.76377287,225.32,225.31,0.063]
[1738435750756,3.80371503,225.34,225.31,0.063]
[1738435751869,0.76371503,225.34,225.31,0.063]
[1738435752045,0.76365133,225.33,225.31,0.063]
[1738435752246,23.05,225.36,225.31,0.063]
[1738435752247,0.76365165,225.35,225.31,0.063]
[1738435754975,20.76365165,225.35,225.31,0.063]
[1738435756786,1.0,225.33,225.31,0.063]
[1738435756983,0.76390945,225.32,225.31,0.063]
[1738435757856,0.7639069,225.33,225.31,0.063]
[1738435762888,0.76371872,225.32,225.31,0.063]
[1738435763087,0.76367979,225.34,225.31,0.063]
[1738435763867,0.03,225.36,225.31,0.063]
[1738435764064,0.03,225.36,225.31,0.72865908]
[1738435764489,0.03,225.36,225.31,0.063]
[1738435764908,0.7935092,225.36,225.31,0.063]
[1738435766295,0.7636422,225.35,225.31,0.063]
[1738435767185,0.7935911,225.36,225.31,0.063]
[1738435768297,0.03,225.36,225.31,0.063]
[1738435768594,0.79359166,225.36,225.31,0.063]
[1738435769406,0.76364772,225.35,225.31,0.063]
[1738435770513,0.76364323,225.34,225.31,0.063]
[1738435770715,0.03,225.36,225.31,0.063]
[1738435771405,0.79375475,225.36,225.31,0.063]
[1738435772876,20.0,225.34,225.31,0.063]
[1738435773079,0.76382982,225.33,225.31,0.063]
[1738435777835,0.76371669,225.35,225.31,0.063]
[1738435778195,20.76371669,225.35,225.31,0.063]
[1738435781425,0.03,225.36,225.31,0.063]
[1738435782515,0.76352998,225.35,225.31,0.063]
[1738435792338,3.0,225.34,225.31,0.063]
[1738435792539,0.76372995,225.34,225.31,0.063]
[1738435793626,0.79360713,225.36,225.31,0.063]
[1738435793943,20.79360713,225.36,225.31,0.063]
[1738435803339,0.79360713,225.36,225.31,0.063]
[1738435803755,0.76362431,225.35,225.31,0.063]
[1738435804524,0.03,225.36,225.31,0.063]
[1738435804867,20.79352563,225.36,225.31,0.063]
[1738435806147,20.0,225.35,225.31,0.063]
[1738435806351,20.0,225.35,225.23,1.6402]
[1738435806352,0.76381355,225.34,225.23,1.6402]
[1738435807223,0.76381355,225.34,225.25,0.66593557]
[1738435808346,0.79362713,225.36,225.26,8.33359853]
[1738435808544,0.79362713,225.36,225.27,0.66570775]
[1738435809422,0.76356017,225.35,225.27,0.66570775]
[1738435809848,0.03,225.36,225.27,0.66570775]
[1738435810551,0.79356587,225.36,225.27,0.66570775]
[1738435811041,0.03,225.36,225.28,8.33359853]
[1738435811216,0.03,225.36,225.29,0.66565614]
[1738435812544,0.03,225.36,225.24,0.72868753]
[1738435813757,0.03,225.36,225.24,5.16828753]
[1738435813925,0.03,225.36,225.24,0.72868753]
[1738435814526,20.0,225.35,225.24,0.72868753]
[1738435814727,0.76375732,225.34,225.24,0.063]
[1738435815150,0.76375732,225.34,225.25,0.66587723]
[1738435815348,0.76375732,225.34,225.24,0.063]
[1738435817548,0.76375732,225.34,225.24,0.72888117]
[1738435817749,0.76375732,225.34,225.24,0.063]
[1738435819362,0.76375732,225.34,225.25,0.66588421]
[1738435819551,0.76375732,225.34,225.24,0.72888421]
[1738435822349,0.76375732,225.34,225.24,0.063]
[1738435827156,0.79375732,225.34,225.24,0.063]
[1738435827554,0.79375732,225.34,225.25,0.66589073]
[1738435828434,0.03,225.34,225.28,8.33359853]
[1738435828655,0.03,225.34,225.29,0.66562935]
[1738435829038,0.03,225.34,225.3,8.33359853]
[1738435829240,0.03,225.34,225.31,0.66565545]
[1738435829435,0.03,225.34,225.29,0.66566511]
[1738435829642,0.03,225.34,225.24,9.06231169]
[1738435829985,0.79363214,225.34,225.25,13.41184853]
[1738435830163,0.03,225.34,225.26,0.66573639]
[1738435831062,0.03,225.34,225.26,5.10493639]
[1738435831673,0.03,225.34,225.26,13.43853492]
[1738435832162,0.03,225.34,225.28,8.33359853]
[1738435832478,0.03,225.34,225.29,0.66564506]
[1738435832636,0.03,225.34,225.3,8.33359853]
[1738435832838,0.03,225.34,225.31,0.66558567]
[1738435836500,0.03,225.34,225.32,0.66560339]
[1738435836985,0.03,225.34,225.29,0.66560385]
[1738435837153,0.03,225.34,225.27,0.66568374]
[1738435838167,0.03,225.34,225.28,0.66572379]
[1738435838477,0.03,225.34,225.28,0.59714141]
[1738435839281,0.79358397,225.34,225.26,0.55989487]
[1738435840170,0.03,225.34,225.27,0.56002178]
[1738435841164,0.03,225.34,225.26,0.55994755]
[1738435842666,0.03,225.34,225.25,0.62299996]
[1738435842866,0.03,225.34,225.26,0.66578621]
[1738435843784,0.03,225.34,225.25,0.72879208]
[1738435848489,0.03,225.34,225.26,17.85114853]
[1738435848690,0.03,225.34,225.27,0.66567897]
[1738435850795,0.03,225.34,225.28,26.18434706]
[1738435850976,0.03,225.34,225.29,0.66564231]
[1738435854880,0.03,225.34,225.25,0.063]
[1738435855095,0.79367349,225.34,225.25,0.72880469]
[1738435856890,0.76368405,225.33,225.25,0.72880469]
[1738435858196,0.76368405,225.33,225.25,0.063]
[1738435864022,20.0,225.29,225.25,0.063]
[1738435864208,0.76389725,225.28,225.25,0.063]
[1738435866998,3.74378854,225.31,225.25,0.063]
[1738435867192,2.98,225.31,225.25,0.72889673]
[1738435868898,0.03,225.36,225.25,9.06249526]
[1738435869127,0.76365123,225.33,225.25,9.06249526]
[1738435869999,21.6403,225.34,225.25,13.50189526]
[1738435870602,1.6403,225.34,225.25,13.50189526]
[1738435871295,21.6403,225.34,225.25,5.16829673]
[1738435871500,21.6403,225.34,225.25,0.72889673]
[1738435873116,21.6403,225.34,225.25,5.16829673]
[1738435873316,0.03,225.34,225.29,13.41184853]
[1738435873618,0.03,225.34,225.3,8.99925914]
[1738435874330,0.03,225.34,225.3,0.66566061]
[1738435875718,0.03,225.34,225.29,0.66563086]
[1738435875901,0.03,225.34,225.25,0.72873216]
[1738435876090,0.03,225.34,225.25,0.063]
[1738435876616,6.99811067,225.34,225.25,0.063]
[1738435876794,20.0,225.31,225.25,0.063]
[1738435876996,0.76381271,225.3,225.25,0.063]
[1738435878599,2.41551271,225.3,225.25,0.063]
[1738435897937,2.41551271,225.3,225.24,0.063]
[1738435898137,3.00405539,225.3,225.24,0.063]
[1738435898475,20.0,225.26,225.24,0.0001]
[1738435898628,20.76411906,225.25,225.24,0.0001]
[1738435900090,20.0,225.24,225.11,0.063]
[1738435900251,0.76420237,225.23,225.11,8.39659853]
[1738435900457,0.76420237,225.23,225.13,8.33359853]
[1738435900662,0.76420237,225.23,225.14,0.66613828]
[1738435901551,0.76420237,225.23,225.12,8.33359853]
[1738435901552,0.76420237,225.23,225.13,0.66616608]
[1738435901753,0.76420237,225.23,225.12,0.66617611]
[1738435901976,1.6177,225.22,225.12,0.66617611]
[1738435902178,0.76419487,225.21,225.12,0.66617611]
[1738435902670,0.76419487,225.21,225.11,0.66622164]
[1738435903172,0.76419487,225.21,225.1,8.33359853]
[1738435903359,0.76419487,225.21,225.09,5.10884295]
[1738435903360,0.76419487,225.21,225.13,8.33359853]
[1738435903564,0.76419487,225.21,225.14,8.99973581]
[1738435903765,0.76408931,225.23,225.15,8.33359853]
[1738435904066,0.76408931,225.23,225.16,8.33359853]
[1738435904402,1.6177,225.27,225.2,8.33359853]
[1738435904696,1.6177,225.27,225.21,0.66596226]
[1738435904894,1.6177,225.27,225.2,0.66595905]
[1738435905199,0.76389859,225.26,225.2,0.66595905]
[1738435905480,0.76389859,225.26,225.19,0.66600381]
[1738435905654,2.38162239,225.27,225.2,0.66596485]
[1738435906059,2.38162239,225.27,225.18,12.77429853]
[1738435906060,2.38162239,225.27,225.19,0.66596425]
[1738435906884,2.38162239,225.27,225.16,0.66607787]
[1738435907990,20.0,225.23,225.11,8.33359853]
[1738435908298,0.76417877,225.22,225.12,0.66620891]
[1738435908470,0.76417877,225.22,225.09,2.26500891]
[1738435910293,0.76417877,225.22,225.09,0.66620891]
[1738435911573,0.76417877,225.22,225.09,0.69620891]
[1738435913900,0.76417877,225.22,225.11,8.33359853]
[1738435914205,0.76417877,225.22,225.12,0.66617737]
[1738435914975,0.76417877,225.22,225.1,0.66621081]
[1738435915190,0.76417877,225.22,225.1,22.41165787]
[1738435916703,0.76417877,225.22,225.1,0.66621081]
[1738435921299,1.5996,225.21,225.11,0.66624216]
[1738435921470,0.76423925,225.2,225.09,0.69625729]
[1738435923472,20.0,225.16,225.1,0.03]
[1738435923778,1.5996,225.14,225.1,0.03]
[1738435923992,0.76443636,225.13,225.1,0.03]
[1738435930610,1.5996,225.14,225.1,0.03]
[1738435930785,2.36395771,225.14,225.1,0.03]
[1738435930987,1.5996,225.14,225.1,0.03]
[1738435931713,4.31281163,225.18,225.11,0.66628106]
[1738435932423,1.5655,225.2,225.12,8.33359853]
[1738435932708,1.5655,225.2,225.13,0.66614515]
[1738435933118,0.76415876,225.19,225.13,0.66614515]
[1738435933599,0.76415876,225.19,225.12,0.66619025]
[1738435934082,0.76415876,225.19,225.1,0.69619367]
[1738435934288,0.76415876,225.19,225.1,0.03]
[1738435935811,0.76415876,225.19,225.1,0.69629023]
[1738435937512,0.76415876,225.19,225.1,0.03]
[1738435937817,6.6635,225.18,225.1,0.03]
[1738435938017,0.76437777,225.17,225.1,0.03]
[1738435941199,20.0,225.15,225.1,0.03]
[1738435941397,0.76440042,225.14,225.1,0.03]
[1738435943329,1.5694,225.13,225.1,0.03]
[1738435943530,0.76452545,225.12,225.1,0.03]
[1738435944414,0.76439267,225.12,225.1,0.03]
[1738435945295,1.5694,225.13,225.1,0.03]
[1738435945296,2.33379077,225.13,225.1,0.03]
[1738435945610,1.5694,225.13,225.1,0.03]
[1738435947624,0.76437439,225.12,225.1,0.03]
[1738435947811,2.33377439,225.13,225.1,0.03]
[1738435948615,20.0,225.15,225.1,0.69636625]
[1738435948927,1.5275,225.2,225.12,8.33359853]
[1738435949125,0.063,225.19,225.14,8.33359853]
[1738435949299,0.063,225.19,225.16,8.33359853]
[1738435949496,0.063,225.19,225.17,8.99961963]
[1738435949696,0.063,225.19,225.17,13.68987483]
[1738435949944,0.063,225.19,225.17,0.6660211]
[1738435953700,0.063,225.19,225.12,0.6660459]
[1738435953900,0.063,225.19,225.12,13.68989963]
[1738435954417,0.063,225.19,225.12,0.6660459]
[1738435955717,0.063,225.19,225.12,5.1080459]
[1738435956935,0.063,225.19,225.12,18.13189963]
[1738435957831,20.0,225.16,225.1,0.03]
[1738435958032,0.76432367,225.15,225.1,0.03]
[1738435958414,20.0,225.16,225.1,0.69625819]
[1738435958732,20.0,225.16,225.1,0.03]
[1738435958908,20.0,225.16,225.1,0.69628149]
[1738435960440,20.0,225.16,225.1,0.03]
[1738435961630,6.6297,225.19,225.11,13.69013557]
[1738435961834,0.063,225.19,225.14,13.02385373]
[1738435962047,0.063,225.19,225.15,0.66608056]
[1738435963043,0.063,225.19,225.13,0.66611441]
[1738435965621,0.063,225.19,225.11,13.44184853]
[1738435965622,0.063,225.19,225.12,0.66617478]
[1738435966543,0.063,225.19,225.11,0.69616669]
[1738435966843,0.063,225.19,225.13,0.66616669]
[1738435968922,0.063,225.19,225.14,0.66612821]
[1738435969851,0.063,225.19,225.12,0.66612832]
[1738435970055,0.063,225.19,225.12,14.07797685]
[1738435972930,0.063,225.19,225.13,13.41184853]
[1738435973128,0.063,225.19,225.14,0.66608287]
[1738435975158,0.063,225.19,225.15,26.43570226]
[1738435975332,0.063,225.19,225.16,0.66602361]
[1738435977053,0.063,225.19,225.12,0.66606808]
[1738435977546,0.82708987,225.19,225.12,0.66606808]
[1738435978052,0.82708987,225.19,225.11,0.69622816]
[1738435978637,0.76419972,225.18,225.11,0.03]
[1738435978838,1.5779,225.17,225.11,0.03]
[1738435979039,0.76427856,225.16,225.11,0.03]
[1738435979440,7.05667856,225.16,225.11,0.03]
[1738435983332,7.05667856,225.16,225.05,13.41184853]
[1738435983834,7.05667856,225.16,225.05,26.45162012]
[1738435984262,7.05667856,225.16,225.07,13.41184853]
[1738435984560,6.2924,225.16,225.09,13.03977159]
[1738435985135,6.2924,225.16,225.07,13.03977159]
[1738435985530,6.2924,225.16,225.08,13.41184853]
[1738435986044,6.2924,225.16,225.07,17.48267159]
[1738435986045,6.2924,225.16,225.1,13.41184853]
[1738435986235,6.3554,225.16,225.1,13.41184853]
[1738435987674,6.3554,225.16,225.06,17.48277159]
[1738435988656,6.3554,225.16,225.07,17.85484853]
[1738435988863,6.3554,225.16,225.07,30.89462012]
[1738435990264,6.3554,225.16,225.07,26.45162012]
[1738435990745,20.0,225.13,225.04,0.03]
[1738435990951,20.0,225.13,225.04,13.44184853]
[1738435991152,20.0,225.13,225.04,26.48162012]
[1738435992165,20.0,225.13,225.05,13.03977159]
[1738435992669,20.0,225.13,225.04,26.48162012]
[1738435993969,0.76438545,225.12,225.04,0.03]
[1738435995271,1.5596,225.11,225.04,0.03]
[1738435995571,20.0,225.02,225.0,36.36800018]
[1738435996656,0.7647772,225.01,225.0,36.36800018]
[1738435996970,2.3243772,225.01,225.0,34.70140018]
[1738435998175,8.7917772,225.01,225.0,24.70160018]
[1738435998685,20.0,224.98,224.89,6.95268779]
[1738435998846,0.76514347,224.97,224.89,6.95268779]
[1738435999570,0.76514347,224.97,224.88,0.03]
[1738435999571,6.3896,224.95,224.88,0.03]
[1738435999874,20.0,224.92,224.88,0.03]
[1738436000183,0.76534632,224.91,224.88,0.03]
[1738436000477,0.76534632,224.91,224.8,100.0]
[1738436000478,13.41184853,224.89,224.8,100.0]
[1738436000649,0.76552585,224.88,224.8,100.0]
[1738436000845,2.98,224.87,224.8,100.0]
[1738436001044,0.76552075,224.86,224.8,100.0]
[1738436002163,20.76552075,224.86,224.8,100.0]
[1738436002864,20.0,224.82,224.8,100.0]
[1738436003065,0.7656082,224.81,224.8,100.0]
[1738436004294,0.76555831,224.82,224.8,100.0]
[1738436005080,0.76560265,224.83,224.8,100.0]
[1738436005380,2.98,224.88,224.8,100.0]
[1738436005560,0.76550492,224.87,224.8,100.0]
[1738436007470,0.76539631,224.86,224.8,100.0]
[1738436007676,0.76541285,224.89,224.8,100.0]
[1738436007865,20.0,224.87,224.8,100.0]
[1738436008177,0.76539366,224.86,224.8,100.0]
[1738436010461,0.76539366,224.86,224.8,100.03]
[1738436011790,0.7653651,224.95,224.84,13.03977159]
[1738436012092,0.7653651,224.95,224.86,13.03977159]
[1738436012459,20.0,224.94,224.86,13.03977159]
[1738436012669,0.76514376,224.93,224.85,13.03977159]
[1738436012869,0.76514376,224.93,224.84,13.03977159]
[1738436013275,0.76514376,224.93,224.83,17.48757159]
[1738436013683,0.76516983,224.92,224.81,4.4482]
[1738436013968,0.76528956,224.95,224.81,4.4482]
[1738436014377,20.0,224.94,224.81,4.4482]
[1738436014591,0.76526661,224.93,224.81,17.48797159]
[1738436014766,0.76526661,224.93,224.83,17.48757159]
[1738436015079,0.76526661,224.93,224.84,13.03977159]
[1738436016165,0.76526661,224.93,224.8,100.03]
[1738436016477,0.76526661,224.93,224.8,117.51807159]
[1738436017869,0.76526661,224.93,224.82,4.448]
[1738436018783,0.76526661,224.93,224.8,113.06977159]
[1738436018992,0.76526661,224.93,224.8,100.03]
[1738436022791,20.0,224.89,224.8,100.03]
[1738436023002,0.76548969,224.88,224.8,100.03]
[1738436024201,0.76541587,224.87,224.8,100.03]
[1738436024403,20.76541496,224.92,224.8,100.03]
[1738436024602,20.0,224.88,224.8,100.03]
[1738436024769,0.76548598,224.87,224.8,100.03]
[1738436024968,20.0,224.88,224.8,100.03]
[1738436025225,0.76545137,224.87,224.8,100.03]
[1738436026188,0.76547296,224.86,224.8,100.03]
[1738436026393,0.76547315,224.89,224.8,100.03]
[1738436031500,0.69378862,224.89,224.8,100.03]
[1738436035215,0.75678862,224.89,224.8,100.03]
[1738436038410,20.0,224.85,224.8,100.03]
[1738436038598,0.69388502,224.84,224.8,100.03]
[1738436039296,20.69388502,224.84,224.8,100.03]
[1738436039603,20.0,224.81,224.8,99.6894]
[1738436039807,20.69401074,224.81,224.8,99.6894]
[1738436040317,0.69401074,224.81,224.8,99.6894]
[1738436041115,0.69396323,224.81,224.8,99.6894]
[1738436042110,14.10586021,224.82,224.8,99.6894]
[1738436043212,13.41184853,224.81,224.8,99.6894]
[1738436043726,14.10587993,224.81,224.8,99.6894]
[1738436044709,14.10587993,224.81,224.8,3.56381227]
[1738436047917,14.16887993,224.81,224.8,3.56381227]
[1738436048220,20.0,224.78,224.69,1.7448]
[1738436048396,0.6942099,224.77,224.69,1.7448]
[1738436050710,0.063,224.81,224.71,13.0828469]
[1738436050711,0.75710846,224.81,224.71,13.0828469]
[1738436051101,0.75710846,224.81,224.7,13.0828469]
[1738436053231,0.75710846,224.81,224.69,6.1952]
[1738436053232,0.75710846,224.81,224.69,1.7448]
[1738436053934,0.75710846,224.81,224.69,6.1952]
[1738436055723,0.75710846,224.81,224.69,19.2780469]
[1738436055905,0.75710846,224.81,224.71,13.0828469]
[1738436056515,0.75710846,224.81,224.7,13.0828469]
[1738436056828,0.75710846,224.81,224.69,19.2780469]
[1738436057033,0.75710846,224.81,224.71,4.4501]
[1738436057834,0.063,224.81,224.71,4.4501]
[1738436058043,0.063,224.81,224.71,17.5329469]
[1738436058205,0.7568842,224.81,224.71,17.5329469]
[1738436058402,0.063,224.81,224.71,17.5329469]
[1738436059330,0.063,224.81,224.73,13.0828469]
[1738436059732,0.063,224.81,224.74,8.36772491]